Cogmind - Beta 11.1 *** ADVENTURER MODE // 2022.08.09 @ 00:02:22 Player: Kek Result: Destroyed by D-53 Grenadier with Mini Grenade Launcher Performance ------------- Evolutions (0) 0 Regions Visited (2) 400 Robots Destroyed (24) 120 Value Destroyed (456) 456 Prototype IDs (0) 0 Alien Tech Used (0) 0 Bonus (-36) -36 TOTAL SCORE: 940 Bonus ------- Friendly Fire -36 Cogmind --------- Core Integrity 0/250 Matter 239/300 Energy 100/100 System Corruption 1% Temperature Cool (0) Movement Core (50) Location -10/Mines Parts ------- > --- POWER (1) -------- (None) > --- PROPULSION (2) --- (None) > --- UTILITY (2) ------ (None) > --- WEAPON (2) ------- (None) > --- INVENTORY (5) ---- EM Pulse Gun Medium Laser Assault Rifle Peak State ------------ > --- POWER ------------ Ion Engine > --- PROPULSION ------- Light Treads Light Treads > --- UTILITY ---------- Small Storage Unit Large Storage Unit > --- WEAPON ----------- EM Pulse Gun Medium Laser > --- INVENTORY -------- Ion Engine [Rating: 7] Favorites ----------- Power Ion Engine Engine Ion Engine Propulsion Light Treads Treads Light Treads Leg Aluminum Leg Wheel Wheel Flight Unit Flight Unit Utility Heat Sink Device Heat Sink Storage Large Storage Unit Protection Light Armor Plating Weapon EM Pulse Gun Energy Gun EM Pulse Gun Launcher Grenade Launcher Impact Weapon Hammer Build | -11 -10 -10 ------- Run | Scr Mat Min Slots Evolved . | . . . Power . | . . . Propulsion . | . . . Utility . | . . . Weapon . | . . . Parts Attached 19 | 6 12 1 Power 3 | 1 2 . Engine 3 | 1 2 . Core . | . . . Reactor . | . . . Propulsion 8 | 2 6 . Treads 2 | 2 . . Leg 2 | . 2 . Wheel 2 | . 2 . Hover . | . . . Flight 2 | . 2 . Utility 4 | 1 3 . Device 1 | . 1 . Storage 2 | 1 1 . Processor . | . . . Hackware . | . . . Protection 1 | . 1 . Artifact . | . . . Weapon 4 | 2 1 1 Energy Gun 2 | 2 . . Energy Cannon . | . . . Ballistic Gun . | . . . Ballistic Cannon . | . . . Launcher 1 | . . 1 Special Weapon . | . . . Impact Weapon 1 | . 1 . Slashing Weapon . | . . . Piercing Weapon . | . . . Special Melee Weapon . | . . . Unidentified Prototypes . | . . . Parts Lost 7 | . . 7 Power 1 | . . 1 Propulsion 2 | . . 2 Utility 2 | . . 2 Weapon 2 | . . 2 Highest Loss Streak 6 | . . 6 To Critical Strikes . | . . . Average Slot Usage (%) 86 | . 85 91 Engine 13 | . 13 13 Treads 9 | . 11 . Leg 3 | . 4 . Wheel 4 | . 1 21 Flight 6 | . 7 . Device 11 | . 10 14 Storage 6 | . 7 . Protection 2 | . . 13 Energy Gun 18 | . 19 6 Launcher 1 | . . 7 Impact Weapon 8 | . 8 14 Naked Turns . | . . . Heaviest Build 30 | 14 30 14 Greatest Support 40 | 40 40 20 Greatest Overweight (x) 9 | . 9 1 Average Overweight (x) . | . . . Largest Inventory Capacity 15 | 8 15 5 Average Capacity 9 | 7 9 5 Most Carried 5 | 5 5 3 Average Carried 2 | 1 2 3 Final Capacity 8 | 8 5 5 Final Carried 3 | 1 3 3 Class Distribution -------------------- 100% | Mutant Dominant Class ---------------- Mutant | -10/Materials Mutant | -10/Mines Resources | -11 -10 -10 ----------- Run | Scr Mat Min Matter Collected 384 | 226 104 54 Remotely . | . . . Salvage Created 717 | . 595 122 Parts 33 | . 29 4 Haulers Intercepted . | . . . Recyclers Shooed 3 | . 2 1 Parts Field Recycled . | . . . Retrieved Matter . | . . . Parts Self-Destructed . | . . . Prevented . | . . . Kills | -11 -10 -10 ------- Run | Scr Mat Min Combat Hostiles Destroyed 16 | . 9 7 Melee 4 | . 2 2 Guns 4 | . 4 . AOE 8 | . 3 5 Classes Destroyed 9 | . 6 3 Worker 4 | . 2 2 Builder 3 | . 3 . Tunneler 1 | . . 1 Recycler 2 | . 2 . Watcher 3 | . 3 . Swarmer 3 | . 3 . Grunt 6 | . 6 . Sentry 2 | . . 2 Assembled 5 | . . 5 Best Kill Streak 5 | . 5 5 Combat Bots Only 5 | . 3 5 Max Kills in Single Turn 4 | . 2 4 Gunslinging . | . . . Exploded 4 | . 2 4 Melee 1 | . 1 1 Uniques/NPCs Destroyed . | . . . Combat | -11 -10 -10 -------- Run | Scr Mat Min Damage Taken 841 | . 230 611 Core 260 | . 45 215 Absorbed by Shields . | . . . Core Remaining (%) 100 | 100 . . Volleys Fired 46 | . 38 8 Largest 2 | . 2 1 Hottest 90 | . 90 30 Shots Fired 74 | . 65 9 Gun 65 | . 65 . Cannon . | . . . Launcher 9 | . . 9 Special . | . . . Kinetic . | . . . Thermal 27 | . 27 . Explosive 9 | . . 9 Electromagnetic 38 | . 38 . Robot Hit Streak 10 | . 10 7 Robot Miss Streak 2 | . 2 1 Penetration Max . | . . . Secondary Targets . | . . . Shots Hit Robots 71 | . 54 17 Core Hits 43 | . 20 23 Critical Kills 2 | . 1 1 Critical Parts Destroyed 4 | . 2 2 Critical Strikes 7 | . 4 3 Burn 1 | . 1 . Smash 6 | . 3 3 Melee Attacks 20 | . 10 10 Impact 20 | . 10 10 Slashing . | . . . Piercing . | . . . Sneak Attacks 6 | . 3 3 Combat Hostiles . | . . . Follow-up Attacks . | . . . Damage Inflicted 2091 | . 1098 993 Guns 630 | . 630 . Cannons . | . . . Explosions 877 | . 236 641 Melee 581 | . 229 352 Ramming 3 | . 3 . Kinetic . | . . . Thermal 449 | . 449 . Explosive 641 | . . 641 Electromagnetic 417 | . 417 . Impact 581 | . 229 352 Slashing . | . . . Piercing . | . . . Highest Corruption 1 | . 1 1 Average Corruption 1 | . 1 1 Corruption Purged . | . . . Corruption Blocked . | . . . Effects 2 | . . 2 Energy Discharges 1 | . . 1 Misfires 1 | . . 1 Overload Shots . | . . . Overflow Damage 216 | . 89 127 Projectiles . | . . . Explosions 35 | . 16 19 Melee 181 | . 73 108 Knockbacks 1 | . 1 . Impact 1 | . 1 . Kinetic . | . . . Secondary . | . . . Self-Inflicted Damage 83 | . 39 44 Shots 4 | . 2 2 Rammed 2 | . 2 . Targets Rammed 2 | . 2 . Kicked . | . . . Crushed . | . . . Highest Temperature 96 | . 96 15 Average Temperature 28 | . 29 9 Received Heat Transfer 272 | . 144 128 Siege Activations . | . . . Robots Corrupted 1 | . 1 . Combat Hostiles . | . . . Parts Fried 12 | . 10 2 Impact Corruptions 8 | . 3 5 Robots Melted . | . . . Combat Hostiles . | . . . Parts Melted 2 | . 2 . Heat Transferred 1003 | . 1003 . Parts Sabotaged . | . . . Parts Stolen . | . . . Parts Stripped . | . . . Power Chain Reactions 4 | . 4 . Missiles Intercepted . | . . . Alert | -11 -10 -10 ------- Run | Scr Mat Min Peak Influence 237 | . 237 142 Initial 14 | . . 14 Average 61 | . 65 67 Maximum Alert Level 1 | . 1 . Low Security (%) 96 | 100 95 100 Level 1 3 | . 4 . Level 2 . | . . . Level 3 . | . . . Level 4 . | . . . Level 5 . | . . . High Security . | . . . Max Security . | . . . Squads Dispatched 1 | . 1 . Investigation 1 | . 1 . Extermination . | . . . Reinforcement . | . . . Assault . | . . . Garrison . | . . . Intercept . | . . . Searches Triggered . | . . . Construction Impeded . | . . . Haulers Reinforced . | . . . Active Scanning Responses . | . . . Cargo Convoy Interrupts . | . . . Stealth | -11 -10 -10 --------- Run | Scr Mat Min Distress Signals 2 | . 2 . Communications Jammed . | . . . Distress Signals . | . . . Times Spotted 35 | . 15 20 Peak Tracking Total 17 | . 3 17 Tactical Retreats 2 | . 2 . Traps | -11 -10 -10 ------- Run | Scr Mat Min Traps Triggered 2 | . 2 . Indirectly . | . . . Trap Hack Attempts . | . . . Triggered . | . . . Disarmed . | . . . Reprogrammed . | . . . Reused . | . . . Traps Extracted . | . . . Installed . | . . . Triggered 1 | . 1 . Machines | -11 -10 -10 ---------- Run | Scr Mat Min Machines Disabled 2 | . 2 . Max in Single Turn 1 | . 1 . Machines Sabotaged . | . . . Garrisons Compromised . | . . . Overloaded Fab Kills . | . . . Hacking | -11 -10 -10 --------- Run | Scr Mat Min Machines Accessed 3 | . 3 . Terminals 3 | . 3 . Fabricators . | . . . Repair Stations . | . . . Recycling Units . | . . . Scanalyzers . | . . . Garrison Access . | . . . Total Hacks 5 | . 5 . Successful 1 | . 1 . Failed 4 | . 4 . Catastrophic . | . . . Database Lockouts . | . . . Manual 2 | . 2 . Terminals 5 | . 5 . Fabricators . | . . . Repair Stations . | . . . Recycling Units . | . . . Scanalyzers . | . . . Garrison Access . | . . . Terminal Hacks 1 | . 1 . Reinforcement Status 1 | . 1 . Fabricator Hacks . | . . . Repair Station Hacks . | . . . Recycling Unit Hacks . | . . . Scanalyzer . | . . . Garrison Access Hacks . | . . . Unauthorized Hacks . | . . . Terminals . | . . . Fabricators . | . . . Repair Stations . | . . . Recycling Units . | . . . Scanalyzers . | . . . Garrison Access . | . . . Data Cores Recovered . | . . . Used . | . . . Hacking Detections 2 | . 2 . Full Trace Events . | . . . Feedback Events . | . . . Feedback Blocked . | . . . Robot Schematics Acquired . | . . . Robots Built . | . . . Authchips . | . . . Time . | . . . Total Robot Build Rating . | . . . Part Schematics Acquired . | . . . Parts Built . | . . . Authchips . | . . . Time . | . . . Total Part Build Rating . | . . . Parts Repaired . | . . . Time . | . . . Parts Recycled . | . . . Recycled Matter . | . . . Retrieved Matter . | . . . Retrieved Components . | . . . Parts Scanalyzed . | . . . Part Schematics Acquired . | . . . Parts Damaged . | . . . Bothacking | -11 -10 -10 ------------ Run | Scr Mat Min Used RIF Installer . | . . . Robots Hacked . | . . . Non-combat . | . . . Combat . | . . . Robot Hacks Applied . | . . . Relay Couplers Released . | . . . Fabnet Peak Effective % . | . . . Robots Rewired . | . . . Allies Hacked . | . . . Hacks Repelled . | . . . Allies | -11 -10 -10 -------- Run | Scr Mat Min Total Allies . | . . . Largest Group . | . . . Highest-Rated Group . | . . . Highest-Rated Ally . | . . . Total Orders . | . . . Ally Attacks . | . . . Total Damage . | . . . Kills . | . . . Allies Corrupted . | . . . Allies Melted . | . . . Intel | -11 -10 -10 ------- Run | Scr Mat Min Robot Analysis Total . | . . . Derelict Logs Recovered 1 | . . 1 Drone Launches . | . . . Drone Recoveries . | . . . Exploration | -11 -10 -10 ------------- Run | Scr Mat Min Turns Passed 1415 | 81 1143 191 Spaces Moved 910 | 55 690 165 Core 26 | 17 4 5 Treads 267 | 38 229 . Legs 241 | . 241 . Wheels 214 | . 54 160 Hover . | . . . Flight 162 | . 162 . Fastest Speed 50 | 50 80 50 Average Speed 128 | 126 139 84 Slowest Speed 500 | 160 500 95 Overloaded Moves . | . . . Propulsion Burnouts . | . . . Robots Hopped . | . . . Cave-ins Triggered . | . . . Exploration Rate (%) 47 | 5 99 38 Regions Visited 2 Branch Regions 1 Pre-discovered Areas 1 | . . 1 Known Exits Taken . | . . . Unknown Exits Taken 2 | 1 1 . Scrap Searched 1 | . . 1 Spaces Dug . | . . . Terrain Destroyed 71 | . 16 55 Melee . | . . . Projectile . | . . . AOE 71 | . 16 55 Terrain Rammed . | . . . Walls Destroyed . | . . . Machines Disabled . | . . . Actions | -11 -10 -10 --------- Run | Scr Mat Min Total 1053 | 67 795 191 Wait 21 | . 14 7 Move 908 | 54 689 165 Hop . | . . . Pick Up 24 | 7 17 . Fast Attach . | . . . Attach 17 | 6 11 . Detach 1 | . 1 . Swap 2 | . 1 1 Drop 12 | . 12 . Fire 46 | . 38 8 Melee 20 | . 10 10 Ram . | . . . Kick . | . . . Crush 2 | . 2 . Escape Stasis . | . . . Rewire . | . . . Trap . | . . . Miscellaneous . | . . . Route ------- -11/Scrapyard -10/Materials (discovered 4 exits: [*Mat x3] / [*Min]) -10/Mines (discovered 1 exit: [*Mat]) History --------- Turn | Location | Event 6 | -11/Scrapyard | Discovered new exit (range 13) 82 | -11/Scrapyard | Entered Materials 317 | -10/Materials | Build established: Mutant 695 | -10/Materials | Discovered new exit (range 16) 910 | -10/Materials | Discovered new exit (range 16) 981 | -10/Materials | Discovered new exit (range 16) 1116 | -10/Materials | Discovered new exit (range 16) 1225 | -10/Materials | Entered Mines 1235 | -10/Mines | Learned location of Mines (-9) 1247 | -10/Mines | Discovered new exit (range 10) 1399 | -10/Mines | Assembled infested the area 1404 | -10/Mines | Assisted by a Guerilla fighting off Assembled 1414 | -10/Mines | Core integrity fell below 50% 1416 | -10/Mines | Core integrity fell below 20% 1416 | -10/Mines | Destroyed by D-53 Grenadier with Mini Grenade Launcher Last Messages --------------- 01408_ as-04393 destroyed. 01408_ R0-XRF(h) destroyed. 01408_ as-01375 destroyed. 01408_ Machine disabled. 01408_ as-66944 suffers critical hit (Destroy). 01408_ as-66944 destroyed. 01410_ as-88301 destroyed. 01410_ Machine disabled. 01410_ Grenade Launcher destroyed. 01410_ as-59767 destroyed. 01410_ as-77460 destroyed. 01414_ Acquired 2 matter. 01414_ Destroyed Asb. Heavy Rifle. 01414_ as-95077 system corrupted by crushing effect. 01414_ as-95077 destroyed. 01416_ as-92046 destroyed. 01416_ as-27468 destroyed. 01416_ Heat Sink destroyed. 01416_ as-34003 destroyed. 01416_ Hammer destroyed. Map ----- +----------------------------------------------------+ | | | | | | | | | | | | | | | | | | | | | | | ?????????????????????????????????????????????????? | | ?????????????????????????????????????????????????? | | ?????????????????????????????????????????????????? | | ???????????????????????????????????? ????????????? | | ??????????????????????????????????? ?????????????? | | ######????## ???????????????????? #?????????????? | | #???## ????????????????### #?????????????? | | ! #???# ??????????????# ##????????????? | | # # ##??# ?????????????# ## ??????????? | | ##?# ???????????## ??????????? | | # #?# #??######?## ???????????? | | # ##### #?##"!!"### ??????????????? | | % ###" !! " a % #????????????????? | | # * ## *a #?????????????????? | | # # # # ] @ #?????????????????? | | # ### # %a ##?????????????????? | | #######???# % #??????????????????? | | ######### #??????????????????? | | ! ### #??????????????????? | | ! #### ## d ######??????????????????? | | # ##### # d ###???????????????????????? | | ##### ## ##?????????????????????????? | | ????# % ######??????????????????????????? | | ????# ### ##???????????????????????????????? | | ????# #?# # #????????????????????????????????? | | ????# #?# # #?????????????????????????????????? | | ????# #?# #####??????????????????????????????????? | | ##### ### #??????????????????????????????????????? | | ##?????????????????????????????????????? | | #?????????????????????????????????????? | | ### < #????????????????????????????????????? | | ??## #????????????????????????????????????? | | ???## ##????????????????????????????????????? | | ????### #?????????????????????????????????????? | | ??????## #?????????????????????????????????????? | | ???????# #?????????????????????????????????????? | | ??????? ##?????????????????????????????????????? | | ??????? ##??????????????????????????????????????? | | ???????###???????????????????????????????????????? | +----------------------------------------------------+ Best States ------------- Heat Dissipation 35 Energy Generation 10 Energy Capacity 250 Matter Stores 300 Matter Capacity 300 Sight Range 16 Terrain Scan Density 10 Armor Coverage 150 Resistance: KI 20 Resistance: TH 20 Resistance: EX 20 Resistance: EM 20 Resistance: I 20 Resistance: S 20 Resistance: P 20 Evasion (%) 55 Recoil Reduction 2 Offensive Hacking 10 Item Schematics ----------------- None Robot Schematics ------------------ None Fabricated ------------ Nothing Alien Tech Used ----------------- None Achievements -------------- None Challenges ------------ None Game ------ Seed LongswordDataGenerator Manual? 1 Play Time 00:27:20 Cumulative 13.4 hours Start 2022.08.06 @ 22:03:17 End 2022.08.09 @ 00:02:22 Sessions 3 Manual Loads 0 Difficulty Adventurer Special Mode None Game No. 21 Rogue 12 Adventurer 1 Explorer 8 Win Type - Total 0 Types 0/0/0/0/0/0/0/0/0 Lore% 5 Gallery% 19 Achievement% 18 Wizard Run 0 Options --------- ASCII 0 Keyboard 0 Movement Numpad Keybinds 0 Fullscreen 1 Font 24/Smallcaps Map View 113x50 Tactical HUD 1 Map Filters NONE Filters NONE Steam 1 RUN: 0bf130e8-9b41-4892-887f-c45c8f0de58b